bitfinex/quotes_ETHUSD_20241103
["timestamp","ask_amount","ask_price","bid_price","bid_amount"]
[1730662597874,0.85597193,2448.7,2448.6,0.05025573]
[1730662598054,0.85597193,2448.7,2448.6,3.72581573]
[1730662598583,0.85597193,2448.8,2448.7,3.67541]
[1730662599080,1.71502047,2449.0,2448.9,3.67511]
[1730662599081,0.85597193,2449.0,2448.9,3.67511]
[1730662599326,2.13976912,2449.3,2448.9,3.67511]
[1730662599327,0.85597193,2449.3,2449.0,3.67496]
[1730662599483,0.85597193,2449.4,2449.2,3.67461]
[1730662599873,0.85597193,2449.4,2449.3,0.04936669]
[1730662600069,0.85597193,2449.4,2449.3,3.67451]
[1730662600273,0.85597193,2449.4,2449.3,3.72387669]
[1730662600505,0.85597193,2449.5,2449.3,0.04936669]
[1730662600712,1.24750258,2449.5,2449.3,0.04936669]
[1730662600916,0.85597193,2449.4,2449.0,7.34976]
[1730662601216,0.85597193,2449.6,2449.4,4.49606]
[1730662601414,0.91640093,2449.9,2449.5,3.67421]
[1730662601715,0.91640093,2449.9,2449.8,3.67376]
[1730662601716,0.060429,2449.9,2449.8,3.67376]
[1730662602917,0.060429,2449.9,2449.6,3.67403]
[1730662603099,0.060429,2449.9,2449.5,0.8217]
[1730662603301,0.060429,2449.9,2449.8,3.67376]
[1730662603824,0.060429,2449.9,2449.7,3.67381]
[1730662604178,0.060429,2449.9,2449.5,4.49581]
[1730662604380,0.060429,2449.9,2449.6,3.67404]
[1730662604584,0.060429,2449.9,2449.5,4.49578]
[1730662605079,0.060429,2449.9,2449.6,3.67402]
[1730662605281,0.060429,2449.9,2449.7,3.67388]
[1730662606230,0.060429,2449.9,2449.7,7.34776]
[1730662606383,0.060429,2449.9,2449.8,3.75539507]
[1730662608645,0.060429,2449.9,2449.8,4.54436123]
[1730662610590,0.060429,2449.9,2449.8,3.72266123]
[1730662613392,0.060429,2449.9,2449.8,0.04890123]
[1730662613605,0.060429,2449.9,2449.7,3.67388]
[1730662613606,0.060429,2449.9,2449.7,7.34771]
[1730662613984,0.060429,2449.9,2449.8,0.04834612]
[1730662614280,0.060429,2449.9,2449.7,3.67383]
[1730662614482,3.734039,2449.9,2449.8,0.04834612]
[1730662614681,0.060429,2449.9,2449.3,4.50331]
[1730662614882,0.060429,2449.9,2449.4,0.12831023]
[1730662615120,3.734069,2449.9,2449.4,3.72102682]
[1730662615484,3.67378,2449.8,2449.4,0.04666682]
[1730662615785,0.0604,2449.7,2449.4,0.04666682]
[1730662616094,3.73433,2449.7,2449.2,3.67464]
[1730662616309,3.73433,2449.7,2449.5,0.04514759]
[1730662616310,3.67408,2449.6,2449.5,0.04514759]
[1730662616489,3.67408,2449.6,2449.1,3.67471]
[1730662616822,0.0604,2449.5,2449.2,0.04514759]
[1730662617011,3.67451,2449.3,2449.2,0.04514759]
[1730662617384,3.73474,2449.5,2448.9,3.67508]
[1730662617583,3.73474,2449.5,2448.7,4.5042]
[1730662617584,0.0604,2449.5,2449.0,0.04514759]
[1730662617825,0.0604,2449.5,2449.1,3.67475]
[1730662618198,0.0604,2449.5,2449.2,0.04514759]
[1730662618599,0.0604,2449.5,2449.3,0.04514759]
[1730662618806,0.0604,2449.5,2449.0,3.67484]
[1730662619011,0.0604,2449.5,2449.1,0.04514759]
[1730662619389,0.0604,2449.5,2449.1,3.71990759]
[1730662619789,3.73469,2449.5,2449.1,0.04514759]
[1730662620216,3.67446,2449.4,2449.1,0.04514759]
[1730662620533,3.73469,2449.5,2448.7,0.8289]
[1730662620699,3.73469,2449.5,2449.2,0.04514759]
[1730662620903,0.0604,2449.5,2448.7,0.8289]
[1730662621107,0.0604,2449.5,2449.3,0.04514759]
[1730662621301,0.0604,2449.5,2449.0,3.67484]
[1730662621508,3.73464,2449.5,2449.4,0.04514759]
[1730662621703,4.475521,2449.5,2449.0,3.67484]
[1730662621932,0.0604,2449.8,2449.4,0.04514759]
[1730662622212,3.734059,2449.9,2449.8,3.67376]
[1730662622213,0.060429,2449.9,2449.8,3.67376]
[1730662622640,0.060429,2449.9,2449.8,3.71890759]
[1730662625247,0.060429,2449.9,2449.8,4.55592558]
[1730662625447,0.060429,2449.9,2449.8,8.10592558]
[1730662625658,0.120829,2451.1,2449.9,11.03083]
[1730662625817,0.120829,2451.1,2450.6,3.67247]
[1730662626014,0.120829,2451.1,2450.7,0.08159884]
[1730662626247,0.120829,2451.1,2450.8,0.0435489]
[1730662626417,0.060429,2451.1,2450.7,0.08159634]
[1730662626616,0.060429,2451.1,2450.8,0.0435489]
[1730662626828,0.060429,2451.1,2450.5,4.42801]
[1730662626829,3.67197,2451.0,2450.5,4.42801]
[1730662627063,0.060429,2451.1,2450.6,3.7160789]
[1730662627264,0.060429,2451.1,2450.6,0.0435489]
[1730662627420,0.060429,2451.1,2450.6,3.7160989]
[1730662627614,0.060429,2451.1,2450.6,0.0435489]
[1730662627957,7.3447,2450.8,2450.6,0.0435489]
[1730662628117,3.67242,2450.7,2450.6,0.0435489]
[1730662628313,3.67242,2450.7,2450.2,3.67308]
[1730662628514,3.6725,2450.7,2450.6,0.0435489]
[1730662628833,3.67274,2450.5,2449.9,4.42891]
[1730662629150,3.73328,2450.4,2449.9,4.42891]
[1730662629339,0.0604,2450.4,2449.9,4.42891]
[1730662629545,3.67321,2450.2,2449.7,4.42924]
[1730662629729,0.433714,2450.4,2449.5,3.67411]
[1730662629929,3.73414,2449.9,2449.3,3.67441]
[1730662630451,3.73414,2449.9,2449.4,3.67434]
[1730662630654,3.67334,2450.1,2449.6,3.67397]
[1730662630816,0.0604,2450.2,2449.8,3.67373]
[1730662631012,4.42286,2450.8,2449.9,0.0816305]
[1730662631013,0.0604,2450.5,2449.9,0.0816305]
[1730662631264,3.73314,2450.5,2450.0,3.67346]
[1730662631751,3.73314,2450.5,2449.9,3.67359]
[1730662631752,0.0604,2450.5,2450.1,3.67329]
[1730662631955,0.0604,2450.5,2450.0,0.08162293]
[1730662632126,0.0604,2450.5,2449.9,3.67359]
[1730662632127,3.67287,2450.4,2449.9,3.67352]
[1730662632820,3.67287,2450.4,2449.7,4.42921]
[1730662633167,0.433698,2450.5,2449.5,7.3482]
[1730662633168,3.67334,2450.1,2449.5,7.3482]
[1730662633363,3.67329,2450.2,2449.5,3.6741]
[1730662633364,3.67349,2450.0,2449.5,3.6741]
[1730662634035,3.67329,2450.2,2449.5,3.6741]
[1730662634215,3.67328,2450.2,2449.7,3.67388]
[1730662634421,3.67328,2450.2,2449.7,7.34771]
[1730662634621,3.67293,2450.4,2449.8,3.67372]
[1730662634622,3.67302,2450.3,2449.8,3.67372]
[1730662635061,0.0604,2450.5,2449.8,3.75535553]
[1730662635222,6.8004198,2450.9,2449.8,3.75535553]
[1730662635223,3.6725,2450.7,2450.2,3.67308]
[1730662635422,3.67255,2450.7,2450.1,3.67323]
[1730662635622,3.67265,2450.6,2450.1,3.67323]
[1730662636271,0.80091,2450.8,2450.3,3.67293]
[1730662636563,4.47332,2450.8,2450.2,3.67304]
[1730662636733,3.6725,2450.7,2450.2,3.67304]
[1730662636959,3.67257,2450.6,2450.0,4.42876]
[1730662637159,3.67257,2450.6,2450.0,8.10213]
[1730662637388,3.67257,2450.6,2450.1,3.6732]
[1730662637587,3.67257,2450.6,2450.0,4.42876]
[1730662637883,4.47329,2450.8,2450.1,3.67329]
[1730662638067,7.34528,2450.6,2450.0,4.42876]
[1730662638272,7.34528,2450.6,2450.0,8.10212]
[1730662638468,3.67259,2450.6,2450.1,0.04298151]
[1730662638688,0.447329,2450.7,2450.2,3.67315]
[1730662638859,3.67243,2450.7,2450.2,3.67315]
[1730662639182,3.67243,2450.7,2450.1,0.08161899]
[1730662639357,3.67243,2450.7,2450.3,0.04298151]
[1730662639566,3.7327,2450.8,2450.3,3.67294]
[1730662639754,3.73155151,2450.8,2450.4,0.04298151]
[1730662640175,3.67243,2450.7,2450.4,0.04298151]
[1730662640380,3.67257,2450.6,2450.4,0.04298151]
[1730662640545,3.67242,2450.7,2450.1,3.67331]
[1730662640749,3.67242,2450.7,2450.5,0.04298151]
[1730662641085,7.34498,2450.7,2450.6,0.04298151]
[1730662641383,7.34498,2450.7,2450.1,7.34654]
[1730662641384,3.67263,2450.6,2450.1,3.67323]
[1730662641586,3.67256,2450.6,2450.0,4.42886]
[1730662641787,3.67301,2450.3,2449.8,0.8209]
[1730662641979,3.67301,2450.3,2449.8,4.49458]
[1730662642291,3.67301,2450.3,2449.8,0.8209]
[1730662642451,3.67326,2450.2,2449.6,3.67406]
[1730662642657,3.67326,2450.2,2449.7,3.7554734]
[1730662642886,3.73256,2450.2,2449.7,3.7554734]
[1730662643183,3.73208,2450.5,2449.8,3.67372]
[1730662643384,3.67297,2450.4,2449.8,3.67372]
[1730662643585,3.67297,2450.4,2449.9,3.67361]
[1730662643984,3.67295,2450.4,2449.9,3.67361]
[1730662644285,3.67294,2450.4,2449.8,3.67372]
[1730662644485,3.67332,2450.1,2449.6,7.34796]
[1730662644687,3.67332,2450.1,2449.6,3.67398]
[1730662644995,3.67332,2450.1,2449.6,7.34795]
[1730662645357,3.67332,2450.1,2449.6,3.67397]
[1730662645556,3.67301,2450.3,2449.6,7.34794]
[1730662645784,3.67372,2449.9,2449.4,3.67424]
[1730662646088,3.67357,2450.0,2449.4,3.67424]
[1730662646290,3.67357,2450.0,2449.2,0.8209]
[1730662646291,3.67357,2450.0,2449.6,3.67403]
[1730662646463,0.0593,2450.1,2449.8,3.67369]
[1730662646666,0.84688014,2450.4,2449.8,0.37553277]
[1730662646853,4.51953014,2450.6,2450.2,3.67316]
[1730662647055,1.32962022,2450.7,2450.2,3.67316]
[1730662647056,4.57860014,2450.7,2450.2,3.67316]
[1730662647269,4.57860014,2450.7,2450.2,8.16705]
[1730662647270,3.73172,2450.7,2450.2,8.16705]
[1730662647469,4.57860014,2450.7,2450.2,8.16706]
[1730662647789,0.90618014,2450.7,2450.3,3.673]
[1730662647995,3.73173,2450.7,2450.2,4.49397]
[1730662648194,1.01142904,2450.7,2450.3,3.67295]
[1730662648489,0.0593,2450.7,2450.3,3.75456356]
[1730662648797,3.6723,2450.8,2450.3,3.67295]
[1730662648971,3.6723,2450.8,2450.3,7.34589]
[1730662649304,0.84688014,2450.8,2450.5,3.67262]
[1730662649456,5.42612929,2451.1,2450.6,3.67249]
[1730662649457,3.732369,2451.1,2450.6,3.67249]
[1730662649652,4.4786969,2451.1,2450.7,3.6724]
[1730662650286,4.4786969,2451.1,2450.5,3.67262]
[1730662650493,5.33210545,2451.1,2450.5,3.67262]
[1730662650659,5.33210545,2451.1,2450.7,3.67238]
[1730662650854,4.4786969,2451.1,2450.7,3.67238]
[1730662651058,5.33210545,2451.1,2450.7,3.67238]
[1730662652307,5.33210545,2451.1,2450.3,3.67301]
[1730662652308,0.66715183,2451.0,2450.3,3.67295]
[1730662652470,3.67237,2450.8,2450.2,4.49406]
[1730662652792,3.73179,2450.7,2450.2,4.49406]
[1730662653299,3.67261,2450.6,2450.2,0.8209]
[1730662653484,3.67261,2450.6,2450.3,0.04279832]
[1730662653796,3.67261,2450.6,2450.1,3.67331]
[1730662653998,3.67261,2450.6,2450.4,0.04279832]
[1730662654207,3.67261,2450.6,2450.0,3.67345]
[1730662654208,3.67271,2450.5,2450.0,3.67345]
[1730662654377,4.62638914,2450.6,2450.5,0.04279832]
[1730662654693,4.62638914,2450.6,2450.1,7.3466]
[1730662654694,4.62638914,2450.6,2450.2,3.67313]
[1730662655212,4.62638914,2450.6,2450.3,0.04279832]
[1730662655511,4.62638914,2450.6,2450.1,3.6733]
[1730662655857,4.62638914,2450.6,2450.2,0.04279832]
[1730662656606,0.060429,2451.1,2450.8,4.44657]
[1730662657471,0.060429,2451.1,2450.9,3.67212]
[1730662658002,0.060429,2451.1,2451.0,3.71453825]
[1730662658763,0.060429,2451.1,2451.0,3.79612532]
[1730662659198,0.060429,2451.1,2451.0,3.71453825]
[1730662664492,3.732249,2451.1,2451.0,0.04256825]
[1730662664679,6.6721,2451.0,2450.4,3.67279]
[1730662664881,3.6722,2450.9,2450.4,7.34558]
[1730662665194,3.0,2451.0,2450.5,0.03795398]
[1730662665397,3.732349,2451.1,2450.6,3.67247]
[1730662665784,3.732349,2451.1,2450.7,0.03662064]
[1730662666183,0.060429,2451.1,2450.7,3.79063301]
[1730662666405,0.060429,2451.1,2450.7,3.70896064]
[1730662666705,0.060429,2451.1,2450.7,0.03662064]
[1730662666917,3.67204,2451.0,2450.7,0.03662064]
[1730662667112,4.50374776,2451.0,2450.5,3.6726]
[1730662667313,0.83170776,2451.0,2450.8,0.03662064]
[1730662667516,0.83170776,2451.0,2450.5,3.6726]
[1730662667925,0.83170776,2451.0,2450.6,3.70909064]
[1730662668121,4.50376776,2451.0,2450.6,0.03662064]
[1730662668424,0.82360968,2450.9,2450.6,0.03662064]
[1730662668608,4.49583968,2450.9,2450.6,0.03662064]
[1730662668792,0.82360968,2450.9,2450.6,0.03662064]
[1730662668992,0.82360968,2450.9,2450.1,0.7743]
[1730662668993,4.49572968,2450.9,2450.4,3.67286]
[1730662669183,0.82360968,2450.9,2450.7,0.03659398]
[1730662669383,0.82360968,2450.9,2450.5,3.67263]
[1730662669717,0.91383755,2451.1,2450.6,3.67245]
[1730662669970,0.060429,2451.1,2450.7,3.75387128]
[1730662670220,0.060429,2451.1,2450.9,3.67204]
[1730662670427,0.060429,2451.1,2450.8,3.67217]
[1730662670428,0.060429,2451.1,2450.8,3.75376419]
[1730662670735,0.060429,2451.1,2451.0,0.03659398]
[1730662670928,0.060429,2451.1,2450.9,3.6721]
[1730662671289,0.060429,2451.1,2451.0,3.70856398]
[1730662671892,0.060429,2451.1,2451.0,4.46406398]
[1730662675232,0.060429,2451.1,2451.0,0.03659398]
[1730662675435,0.060429,2451.1,2451.0,3.70856398]
[1730662675815,0.060429,2451.1,2451.0,0.03659398]
[1730662676228,0.060429,2451.1,2451.0,3.70856398]
[1730662677297,0.060429,2451.1,2451.0,3.79015422]
[1730662677498,0.060429,2451.1,2451.0,3.70856398]
[1730662678733,0.060429,2451.1,2451.0,0.03659398]
[1730662678945,0.060429,2451.1,2451.0,3.70856398]
[1730662679637,0.060429,2451.1,2451.0,0.03659398]
[1730662681135,3.67197,2451.0,2450.5,3.67263]
[1730662681747,3.67197,2451.0,2450.3,6.67292]
[1730662681748,3.67222,2450.9,2450.3,3.67288]
[1730662681963,4.13654075,2451.0,2450.5,3.67258]
[1730662682264,4.9899493,2451.0,2450.5,3.67258]
[1730662682463,0.46451075,2451.0,2450.7,3.67235]
[1730662682649,0.060429,2451.1,2450.8,4.42772]
[1730662682963,0.060429,2451.1,2451.0,3.67197]
[1730662683315,0.060429,2451.1,2451.0,3.75355042]
[1730662683518,0.060429,2451.1,2451.0,3.79007625]
[1730662688119,0.060429,2451.1,2451.0,3.70849583]
[1730662688543,0.060429,2451.1,2451.0,3.79007635]
[1730662692459,0.060429,2451.1,2451.0,7.34007635]
[1730662692638,0.060429,2451.1,2451.0,11.15623226]
[1730662693865,0.060429,2451.1,2451.0,11.16623226]
[1730662694629,0.85340855,2451.8,2451.7,7.44742]
[1730662694973,0.85340855,2451.8,2451.7,7.52898458]
[1730662695273,0.85340855,2451.8,2451.7,7.5750932]
[1730662695422,1.28011283,2451.9,2451.8,7.99727]
[1730662695623,1.70915161,2452.1,2452.0,3.68047]
[1730662695872,1.70915161,2452.1,2452.0,11.11820643]
[1730662696024,1.70915161,2452.1,2452.0,11.15431505]
[1730662696230,1.70915161,2452.1,2452.0,11.16431505]
[1730662696666,0.060429,2452.3,2452.2,5.00667]
[1730662696850,0.060429,2452.3,2452.2,8.00667]
[1730662697255,0.060429,2452.3,2452.2,8.01667]
[1730662697469,0.060429,2452.3,2452.2,7.99667]
[1730662697974,0.060429,2452.3,2452.2,8.03277862]
[1730662698573,0.060429,2452.3,2452.2,7.48277862]
[1730662698737,0.060429,2452.3,2452.2,4.48277862]
[1730662699232,0.060429,2452.3,2452.2,3.67017]
[1730662700041,0.060429,2452.3,2452.1,3.6703]
[1730662700247,0.060429,2452.3,2452.2,3.75171412]
[1730662700575,0.060429,2452.3,2452.1,3.67023]
[1730662700870,0.060429,2452.3,2452.2,0.08155099]
[1730662701079,0.060429,2452.3,2452.1,3.67023]
[1730662701436,0.060429,2452.3,2452.2,0.08155098]
[1730662701772,0.060429,2452.3,2452.2,3.75172098]
[1730662702439,0.060429,2452.3,2452.2,3.67017]
[1730662702835,0.060429,2452.3,2452.2,3.75171648]
[1730662703244,0.060429,2452.3,2452.2,3.67017]
[1730662703650,0.060429,2452.3,2452.2,3.75171641]
[1730662704487,0.060429,2452.3,2452.2,4.42137]
[1730662705349,0.060429,2452.3,2452.2,7.50290665]
[1730662705753,0.060429,2452.3,2452.2,7.42137]
[1730662707075,0.060429,2452.3,2452.2,7.98137]
[1730662707434,0.060429,2452.3,2452.2,7.99137]
[1730662707841,0.060429,2452.3,2452.2,7.98137]
[1730662708783,0.060429,2452.3,2452.2,7.97137]
[1730662710781,0.060429,2452.3,2452.2,3.67017]
[1730662711740,0.060429,2452.3,2452.1,3.67021]
[1730662711983,0.060429,2452.3,2452.1,3.6702]
[1730662712287,0.0593,2452.2,2452.0,3.67038]
[1730662712586,0.0593,2452.2,2452.1,0.08155446]
[1730662712976,0.0593,2452.2,2452.1,3.75187446]
[1730662713987,0.0593,2452.2,2452.0,3.67046]
[1730662714146,0.0593,2452.2,2451.9,0.08155454]
[1730662714346,0.0593,2452.2,2451.8,7.34135]
[1730662714774,3.67043,2452.1,2451.6,7.34198]
[1730662714956,3.67043,2452.1,2450.9,7.36985467]
[1730662714957,0.48215019,2452.2,2451.7,0.8109]
[1730662715161,0.060429,2452.3,2452.0,3.67039]
[1730662715871,0.060429,2452.3,2452.1,3.67023]
[1730662716184,0.060429,2452.3,2452.1,7.34047]
[1730662716364,0.060429,2452.3,2452.1,3.67023]
[1730662717956,0.060429,2452.3,2452.2,0.08155481]
[1730662718175,0.060429,2452.3,2452.2,3.75172481]
[1730662718685,0.060429,2452.3,2452.2,3.67017]
[1730662719723,0.060429,2452.3,2452.2,3.75171641]
[1730662719903,0.060429,2452.3,2452.2,3.67017]
[1730662720065,0.060429,2452.3,2452.2,3.75171641]
[1730662720265,0.060429,2452.3,2452.2,3.67017]
[1730662720476,0.0593,2452.2,2451.9,3.67053]
[1730662720676,0.0593,2452.2,2452.1,3.67032]
[1730662720863,0.0593,2452.2,2452.0,3.67045]
[1730662721262,0.0593,2452.2,2452.1,3.67032]
[1730662721489,0.0593,2452.2,2452.0,3.67046]
[1730662721995,0.060429,2452.3,2452.1,3.75187427]
[1730662722155,0.060429,2452.3,2452.2,3.67017]
[1730662723253,0.060429,2452.3,2452.2,3.7517177]
[1730662723990,0.060429,2452.3,2452.2,3.67017]
[1730662726363,0.060429,2452.3,2452.2,4.48107]
[1730662726566,0.060429,2452.3,2452.2,8.03107]
[1730662727172,0.060429,2452.3,2452.2,8.04107]
[1730662727804,0.060429,2452.3,2452.2,8.03107]
[1730662728018,0.060429,2452.3,2452.2,8.04107]
[1730662729914,0.060429,2452.3,2452.2,8.03107]
[1730662730710,0.060429,2452.3,2452.2,4.48107]
[1730662731221,0.060429,2452.3,2452.2,3.75171144]
[1730662731995,0.060429,2452.3,2452.2,3.67017]
[1730662732433,0.060429,2452.3,2452.2,3.7517187]
[1730662732784,0.060429,2452.3,2451.6,0.8133]
[1730662732981,0.060429,2452.3,2452.2,3.67017]
[1730662734084,0.060429,2452.3,2452.0,3.67043]
[1730662734286,0.0593,2452.2,2451.7,3.67082]
[1730662734596,0.0593,2452.2,2451.8,0.08156436]
[1730662734919,0.0593,2452.2,2452.1,3.67032]
[1730662735513,0.0593,2452.2,2451.9,3.67055]
[1730662736019,0.0593,2452.2,2451.9,3.75210949]
[1730662736690,0.0593,2452.2,2451.9,3.67055]
[1730662737689,0.0593,2452.2,2451.8,3.67065]
[1730662737889,0.0593,2452.2,2452.0,3.67046]
[1730662738228,0.0593,2452.2,2451.9,3.67062]
[1730662739815,3.72949,2452.2,2451.8,3.67065]
[1730662740022,4.60304412,2452.2,2451.8,3.67065]
[1730662740537,0.0593,2452.2,2452.1,3.67032]
[1730662740691,0.060429,2452.3,2452.2,3.67017]
[1730662740891,0.060429,2452.3,2452.2,3.75171618]
[1730662741520,0.060429,2452.3,2452.2,3.67017]
[1730662741732,0.060429,2452.3,2452.2,3.75171873]
[1730662742038,0.060429,2452.3,2452.1,3.67032]
[1730662742632,0.060429,2452.3,2452.2,3.67017]
[1730662743003,0.060429,2452.3,2452.2,3.75171751]
[1730662743406,0.060429,2452.3,2452.2,5.11501751]
[1730662743716,0.060429,2452.3,2452.2,8.11501751]
[1730662743919,0.060429,2452.3,2452.2,8.03347]
[1730662745230,0.060429,2452.3,2452.2,6.67017]
[1730662745608,0.060429,2452.3,2452.2,7.22017]
[1730662746528,0.060429,2452.3,2452.2,6.67017]
[1730662746726,0.060429,2452.3,2452.2,3.75171238]
[1730662747939,0.060429,2452.3,2452.2,3.67017]
[1730662748474,0.060429,2452.3,2452.1,3.67032]
[1730662748659,0.0593,2452.2,2452.0,3.67046]
[1730662748973,0.0593,2452.2,2451.9,0.0815558]
[1730662749174,0.0593,2452.2,2451.8,0.08155843]
[1730662749556,0.0593,2452.2,2452.1,3.67032]
[1730662749762,0.060429,2452.3,2452.2,3.67017]
[1730662750431,0.060429,2452.3,2452.2,3.75171981]
[1730662750954,0.060429,2452.3,2452.2,3.67017]
[1730662751337,0.060429,2452.3,2452.2,3.75171966]
[1730662751755,0.060429,2452.3,2452.2,3.67017]
[1730662752676,0.060429,2452.3,2452.1,3.67032]
[1730662753776,0.060429,2452.3,2452.0,3.75200554]
[1730662753944,0.060429,2452.3,2452.1,3.67032]
[1730662754147,0.060429,2452.3,2452.1,3.67023]
[1730662754359,0.060429,2452.3,2452.1,7.34047]
[1730662754948,0.060429,2452.3,2452.1,3.67023]
[1730662755455,0.060429,2452.3,2451.6,0.8225]
[1730662755660,0.060429,2452.3,2452.1,3.67023]
[1730662755842,0.060429,2452.3,2452.1,7.34048]
[1730662756363,0.060429,2452.3,2452.1,3.67023]
[1730662756672,0.060429,2452.3,2451.9,3.75206858]
[1730662756837,0.060429,2452.3,2452.0,3.67045]
[1730662757378,0.060429,2452.3,2452.1,3.67028]
[1730662758679,0.060429,2452.3,2452.2,10.61005326]
[1730662758887,0.060429,2452.3,2452.2,11.17005326]
[1730662759183,1.28060221,2453.0,2452.9,6.66912]
[1730662759184,0.005,2453.0,2452.9,6.66912]
[1730662759336,0.005,2453.0,2452.7,0.8225]
[1730662759337,0.005,2453.0,2452.7,3.8225]
[1730662759540,0.005,2453.0,2452.7,3.66942]
[1730662759736,0.005,2453.0,2452.6,3.66949]
[1730662759737,0.0593,2452.9,2452.6,3.66949]
[1730662760079,0.0593,2452.9,2452.8,3.66927]
[1730662760571,0.005,2453.0,2452.8,3.66927]
[1730662763680,0.005,2453.0,2452.7,3.75093286]
[1730662763860,0.005,2453.0,2452.8,3.66927]
[1730662765279,0.005,2453.0,2452.9,3.66912]
[1730662766762,0.005,2453.0,2452.9,3.75065288]
[1730662766975,0.005,2453.0,2452.9,3.75064458]
[1730662767262,0.005,2453.0,2452.9,3.66912]
[1730662768591,4.86983825,2453.4,2452.9,3.66912]
[1730662769358,6.78606326,2453.2,2452.6,7.3389]
[1730662769601,6.78606326,2453.2,2452.7,3.66938]
[1730662769602,0.80681515,2453.1,2452.7,3.66938]
[1730662769804,0.80681515,2453.1,2452.8,3.66916]
[1730662771303,4.95084825,2453.2,2452.7,3.66941]
[1730662771469,3.6689,2453.1,2452.6,3.75097793]
[1730662771670,1.28208825,2453.2,2452.7,3.66931]
[1730662771869,4.95078825,2453.2,2452.7,3.66931]
[1730662772312,4.95078825,2453.2,2452.6,3.66948]
[1730662772626,3.66971,2452.6,2452.1,3.67023]
[1730662772779,3.67864222,2452.7,2452.2,3.67014]
[1730662772780,4.95153825,2452.7,2452.2,3.67014]
[1730662772976,1.28208825,2452.9,2452.6,3.66957]
[1730662773181,1.28208825,2453.0,2452.6,3.66957]
[1730662773415,1.94811217,2453.1,2452.7,3.66934]
[1730662773623,1.28208825,2453.0,2452.7,3.66934]
[1730662773788,5.61695217,2453.1,2452.6,3.66957]
[1730662773994,1.94811217,2453.1,2452.6,3.66957]
[1730662774322,1.94811217,2453.1,2452.5,0.08154028]
[1730662774323,1.28208825,2453.1,2452.8,3.66925]
[1730662774511,1.28208825,2453.2,2452.8,3.66917]
[1730662774817,1.28208825,2453.3,2452.9,3.66903]
[1730662774991,1.28208825,2453.3,2452.8,3.66917]
[1730662774992,4.95061825,2453.3,2452.8,3.66917]
[1730662775196,2.53441215,2453.3,2452.8,3.66917]
[1730662775516,6.20298215,2453.3,2452.8,3.66917]
[1730662776023,2.53441215,2453.3,2452.9,3.66912]
[1730662776316,6.20295215,2453.3,2452.9,3.66912]
[1730662776623,1.28208825,2453.3,2453.0,3.66892]
[1730662776781,1.28208825,2453.4,2453.1,3.66882]
[1730662777915,1.34251725,2453.5,2453.3,3.66852]
[1730662778116,0.060429,2453.5,2453.4,3.66837]
[1730662778319,0.060429,2453.5,2453.3,3.66843]
[1730662778481,0.060429,2453.5,2453.4,3.66837]
[1730662778882,0.060429,2453.5,2453.0,0.0815177]
[1730662778883,0.060429,2453.5,2453.1,3.6687]
[1730662779081,0.060429,2453.5,2453.2,3.66866]
[1730662780037,0.060429,2453.5,2453.1,3.66873]
[1730662780197,0.060429,2453.5,2453.4,3.66837]
[1730662780598,0.060429,2453.5,2453.2,7.33722]
[1730662780927,0.060429,2453.5,2453.2,7.33714]
[1730662781132,0.060429,2453.5,2453.2,7.33716]
[1730662781435,0.060429,2453.5,2453.3,3.66845]
[1730662781597,0.060429,2453.5,2453.4,3.66837]
[1730662782529,0.060429,2453.5,2453.2,3.66856]
[1730662784132,0.060429,2453.5,2453.0,3.66894]
[1730662784333,3.728709,2453.5,2453.0,3.66894]
[1730662784512,4.72002043,2453.5,2453.0,3.66894]
[1730662785122,1.05174043,2453.5,2453.1,3.66874]
[1730662785331,4.71997043,2453.5,2453.0,7.33779]
[1730662785635,0.060429,2453.5,2453.0,3.66889]
[1730662785943,0.060429,2453.5,2453.1,3.66869]
[1730662786099,0.060429,2453.5,2453.0,3.66889]
[1730662786299,3.66839,2453.4,2452.8,7.33832]
[1730662786526,3.66852,2453.3,2452.8,3.66915]
[1730662786700,3.66852,2453.3,2452.9,3.6691]
[1730662787524,3.66852,2453.3,2452.6,0.8279]
[1730662787722,3.66852,2453.3,2452.8,3.66926]
[1730662788127,3.66852,2453.3,2452.8,3.66919]
[1730662788426,5.01083725,2453.5,2453.0,3.66894]
[1730662788916,5.01083725,2453.5,2452.9,3.6691]
[1730662788917,3.6684,2453.4,2452.9,3.66912]
[1730662789313,5.01083725,2453.5,2452.9,3.66912]
[1730662789314,5.01075725,2453.5,2452.9,3.66912]
[1730662789510,5.01075725,2453.5,2453.0,3.66891]
[1730662789511,3.66838,2453.4,2453.0,3.66891]
[1730662790151,6.77579389,2453.5,2453.0,3.66891]
[1730662790360,10.44416389,2453.5,2453.0,3.66891]
[1730662790560,3.66844,2453.4,2453.0,3.66891]
[1730662791062,3.66844,2453.4,2452.9,3.66905]
[1730662791217,6.77579389,2453.5,2453.0,3.66894]
[1730662791417,6.77579389,2453.5,2452.9,3.66905]
[1730662791613,4.95048825,2453.4,2452.9,7.33805]
[1730662791960,4.95049825,2453.4,2452.9,3.669]
[1730662792346,3.66841,2453.4,2452.9,3.669]
[1730662792735,3.66841,2453.4,2452.9,7.33804]
[1730662793259,3.66841,2453.4,2453.0,3.66896]
[1730662793460,6.77579389,2453.5,2453.0,3.66896]
[1730662793627,3.6684,2453.4,2453.0,3.66896]
[1730662793828,4.95048825,2453.4,2452.9,3.66911]
[1730662794158,4.88376449,2453.4,2452.9,3.66911]
[1730662794522,6.16585274,2453.4,2452.9,3.66911]
[1730662795251,4.88376449,2453.4,2452.9,3.66911]
[1730662795416,6.16585274,2453.4,2452.9,3.66911]
[1730662795762,2.49745274,2453.4,2452.8,3.66924]
[1730662795936,4.95051825,2453.4,2452.8,3.66919]
[1730662796256,8.61897825,2453.4,2452.9,3.66905]
[1730662796856,4.95047825,2453.4,2453.0,3.66896]
[1730662797041,1.28208825,2453.4,2453.0,7.33784]